bitfinex/quotes_SOLUSD_20240604
["timestamp","ask_amount","ask_price","bid_price","bid_amount"]
[1717520146716,6.3793,169.44,169.4,2.1841]
[1717520150328,6.3793,169.44,169.41,2.184]
[1717520152356,6.3793,169.44,169.4,2.1841]
[1717520154021,6.3793,169.44,169.41,2.184]
[1717520154223,6.3793,169.44,169.4,2.1841]
[1717520154624,6.3793,169.44,169.41,2.184]
[1717520155839,6.3793,169.44,169.4,2.1841]
[1717520156728,6.3793,169.44,169.38,137.6121]
[1717520156729,6.3793,169.44,169.41,2.184]
[1717520157326,6.3793,169.44,169.42,2.1839]
[1717520157633,6.1543,169.46,169.41,2.184]
[1717520158420,8.3377,169.46,169.41,2.184]
[1717520158620,6.1543,169.46,169.41,2.184]
[1717520158840,6.1543,169.46,169.4,128.7363]
[1717520159047,0.8406047,169.48,169.4,128.7363]
[1717520159048,7.4768047,169.48,169.43,2.1837]
[1717520159229,7.4768047,169.48,169.44,2.1836]
[1717520159429,7.4768047,169.48,169.43,8.8737]
[1717520159829,7.4768047,169.48,169.43,2.1837]
[1717520160049,9.6599047,169.48,169.43,2.1837]
[1717520160631,9.6599047,169.48,169.42,8.8738]
[1717520160853,2.1832,169.47,169.42,2.1838]
[1717520161144,6.69,169.45,169.37,4.3689]
[1717520161343,6.69,169.45,169.4,2.184]
[1717520161549,8.833,169.46,169.41,2.1839]
[1717520161753,6.6496,169.46,169.42,2.1838]
[1717520161961,9.6734047,169.48,169.42,8.8738]
[1717520162255,8.8733,169.47,169.41,2.1839]
[1717520162458,15.4125,169.47,169.42,2.1839]
[1717520162754,8.7226,169.46,169.41,2.184]
[1717520163061,8.7227,169.45,169.4,2.1841]
[1717520163270,8.7229,169.44,169.39,2.1842]
[1717520163739,6.5392,169.44,169.39,2.1842]
[1717520163940,6.5392,169.44,169.39,6.69]
[1717520164141,6.5392,169.44,169.4,2.1841]
[1717520166044,6.5392,169.44,169.41,2.184]
[1717520166364,8.8733,169.47,169.41,2.184]
[1717520166540,6.5546,169.45,169.41,2.184]
[1717520168552,6.5546,169.45,169.39,2.1842]
[1717520168759,8.7381,169.45,169.4,2.1841]
[1717520169343,6.5546,169.45,169.4,2.1841]
[1717520170174,8.7381,169.45,169.4,2.1841]
[1717520170760,2.1836,169.44,169.39,2.1842]
[1717520171085,8.7381,169.45,169.39,8.8742]
[1717520171280,2.1836,169.44,169.39,8.8742]
[1717520171491,6.4309,169.43,169.38,2.1844]
[1717520171774,6.4309,169.43,169.39,2.1842]
[1717520171949,6.4309,169.43,169.37,26.69]
[1717520171950,6.4309,169.43,169.4,2.1841]
[1717520172150,6.4309,169.43,169.38,6.69]
[1717520172151,6.4309,169.43,169.39,2.1842]
[1717520173874,6.4309,169.43,169.4,2.1841]
[1717520174762,6.4309,169.43,169.41,2.184]
[1717520175173,8.6665,169.47,169.41,2.184]
[1717520175354,6.4832,169.45,169.41,2.184]
[1717520175559,6.4832,169.45,169.42,2.1838]
[1717520175774,6.4832,169.45,169.41,2.1839]
[1717520176155,6.69,169.47,169.4,4.3682]
[1717520176354,7.08437039,169.46,169.42,2.1838]
[1717520176552,7.08437039,169.46,169.43,2.1837]
[1717520176781,13.2664,169.47,169.42,2.1838]
[1717520176989,7.08421212,169.46,169.43,2.1836]
[1717520177670,7.08421212,169.46,169.44,2.1836]
[1717520178098,7.08421212,169.45,169.44,2.1836]
[1717520178257,7.08421212,169.47,169.44,2.1836]
[1717520178456,7.08421212,169.47,169.43,2.1837]
[1717520179157,7.08421212,169.47,169.43,8.8737]
[1717520179783,7.08421212,169.47,169.43,2.1837]
[1717520180863,7.08421212,169.47,169.44,2.1836]
[1717520181178,7.08421212,169.47,169.43,6.69]
[1717520181179,7.08421212,169.47,169.43,8.8737]
[1717520181581,6.6638,169.46,169.39,4.3685]
[1717520181886,7.08421212,169.45,169.41,2.184]
[1717520182663,7.08421212,169.45,169.41,2.1839]
[1717520182992,7.08421212,169.45,169.42,2.1838]
[1717520183672,7.08421212,169.45,169.41,2.1839]
[1717520183985,7.08421212,169.45,169.39,11.0585]
[1717520184203,7.08421212,169.45,169.42,2.1838]
[1717520184487,7.08421212,169.45,169.41,2.1839]
[1717520184661,6.1846,169.44,169.4,6.69]
[1717520184866,7.0845326,169.43,169.38,6.69]
[1717520185079,7.0845326,169.43,169.4,2.1841]
[1717520185392,6.1846,169.44,169.37,19.6603]
[1717520185393,12.8746,169.44,169.41,2.184]
[1717520185701,12.8746,169.44,169.38,20.0]
[1717520185702,6.69,169.46,169.42,2.1839]
[1717520185859,7.08434381,169.45,169.42,2.1839]
[1717520186576,13.29524381,169.45,169.41,2.1839]
[1717520186778,6.2109,169.45,169.41,2.1839]
[1717520187273,7.08425424,169.44,169.41,2.1839]
[1717520187584,7.08425424,169.44,169.39,11.0586]
[1717520187585,7.08425424,169.44,169.42,2.1838]
[1717520187801,6.2109,169.45,169.42,2.1838]
[1717520188084,7.08424819,169.44,169.42,2.1838]
[1717520188288,6.264,169.43,169.38,20.0]
[1717520188489,6.264,169.43,169.38,31.0587]
[1717520188691,6.264,169.43,169.39,6.69]
[1717520188992,6.264,169.43,169.4,2.1841]
[1717520191063,6.264,169.43,169.36,4.3693]
[1717520191270,0.8406047,169.48,169.36,4.3693]
[1717520191271,13.0701,169.42,169.38,2.1843]
[1717520191790,13.0701,169.42,169.31,150.8129]
[1717520191791,6.3801,169.42,169.31,150.8129]
[1717520191995,6.0899,169.39,169.31,8.7413]
[1717520192289,6.69,169.38,169.32,4.3703]
[1717520192489,6.1563,169.38,169.35,2.1848]
[1717520192661,0.17,169.4,169.32,137.6158]
[1717520192662,12.8463,169.4,169.36,2.1846]
[1717520192865,7.08707483,169.39,169.36,2.1846]
[1717520193491,6.1563,169.4,169.35,2.1847]
[1717520193782,12.8463,169.4,169.35,2.1847]
[1717520194172,6.1563,169.4,169.36,2.1846]
[1717520194889,6.1563,169.4,169.35,2.1847]
[1717520195089,8.3404,169.4,169.35,2.1847]
[1717520195400,6.1563,169.4,169.34,10.9245]
[1717520195574,6.1563,169.4,169.35,11.0596]
[1717520195766,6.1563,169.4,169.37,2.1844]
[1717520195969,6.1563,169.4,169.38,2.1844]
[1717520196394,6.1563,169.4,169.37,2.1844]
[1717520196700,6.1563,169.4,169.36,2.1846]
[1717520197096,6.1563,169.4,169.37,2.1845]
[1717520197697,13.0053,169.42,169.37,2.1845]
[1717520197902,6.3153,169.42,169.37,4.369]
[1717520198278,6.3153,169.42,169.38,2.1843]
[1717520199083,6.3153,169.42,169.38,2.1844]
[1717520200214,13.0053,169.42,169.38,2.1844]
[1717520201109,6.3255,169.41,169.38,2.1844]
[1717520201870,18.1176,169.44,169.39,2.1842]
[1717520202094,13.26743724,169.43,169.4,2.1841]
[1717520202291,6.1816,169.43,169.37,17.6126]
[1717520202515,6.1816,169.43,169.4,2.1841]
[1717520203290,8.4842,169.45,169.4,2.1841]
[1717520205994,2.1836,169.44,169.39,8.8742]
[1717520208213,8.4841,169.45,169.4,2.1841]
[1717520208426,2.1836,169.44,169.4,2.1841]
[1717520209084,6.69,169.43,169.37,2.1845]
[1717520209291,6.5861,169.41,169.37,2.1845]
[1717520209787,6.5861,169.41,169.38,2.1844]
[1717520209998,6.5861,169.41,169.37,2.1844]
[1717520210308,6.5861,169.41,169.37,2.1845]
[1717520210808,8.874,169.42,169.35,17.6137]
[1717520211018,15.4601,169.42,169.37,2.1845]
[1717520211805,15.4601,169.42,169.38,2.1844]
[1717520212010,15.4601,169.42,169.37,2.1844]
[1717520212178,6.5861,169.42,169.36,6.554]
[1717520212377,6.5861,169.42,169.36,13.244]
[1717520212598,6.5861,169.42,169.37,4.3691]
[1717520212798,6.5861,169.42,169.38,2.1843]
[1717520213210,6.5861,169.42,169.37,4.3691]
[1717520213420,6.5861,169.42,169.38,2.1843]
[1717520214279,15.46,169.42,169.37,2.1845]
[1717520214487,6.0571,169.41,169.37,2.1845]
[1717520214713,6.0571,169.41,169.38,2.1844]
[1717520217695,6.0571,169.41,169.37,2.1844]
[1717520217898,6.0571,169.41,169.38,2.1844]
[1717520218099,8.2411,169.41,169.35,6.5544]
[1717520218305,8.2411,169.41,169.36,2.1846]
[1717520218306,6.2861,169.39,169.36,2.1846]
[1717520218813,6.2861,169.39,169.33,15.295]
[1717520218814,6.2861,169.39,169.33,8.7402]
[1717520219010,6.2861,169.39,169.33,26.3555]
[1717520219333,6.2861,169.39,169.35,2.1847]
[1717520220908,15.1604,169.39,169.34,2.1849]
[1717520221110,12.9761,169.39,169.35,2.1848]
[1717520221494,12.9761,169.39,169.34,2.1848]
[1717520221695,12.9761,169.39,169.35,2.1848]
[1717520222103,12.9761,169.39,169.34,2.1848]
[1717520222412,6.2861,169.39,169.35,2.1847]
[1717520223311,6.2861,169.39,169.36,2.1846]
[1717520223626,6.4751,169.39,169.35,2.1847]
[1717520223813,6.4751,169.39,169.36,2.1846]
[1717520224116,6.4751,169.39,169.35,2.1846]
[1717520224286,8.8742,169.4,169.35,2.1846]
[1717520224287,2.1842,169.4,169.35,2.1846]
[1717520225007,8.8741,169.41,169.35,2.1846]
[1717520225194,7.08711798,169.4,169.35,2.1846]
[1717520225598,15.27371798,169.4,169.35,2.1846]
[1717520225801,8.1866,169.4,169.35,2.1846]
[1717520226514,6.0024,169.4,169.36,2.1846]
[1717520226813,8.1866,169.4,169.35,2.1847]
[1717520227192,6.0024,169.4,169.36,2.1846]
[1717520227400,6.0024,169.4,169.35,6.69]
[1717520227608,8.1865,169.4,169.35,8.8747]
[1717520227815,2.1841,169.4,169.35,8.8747]
[1717520228231,21.8869,169.44,169.36,6.69]
[1717520228232,6.6008,169.44,169.36,6.69]
[1717520228528,2.1839,169.42,169.37,2.1845]
[1717520228827,8.3002,169.42,169.37,8.8745]
[1717520229491,8.3002,169.42,169.38,2.1844]
[1717520229728,6.1163,169.42,169.37,8.8745]
[1717520229892,8.3002,169.42,169.37,8.8745]
[1717520230087,8.3002,169.42,169.38,2.1844]
[1717520230291,8.3002,169.42,169.37,8.8745]
[1717520230491,27.8748,169.41,169.28,141.00871982]
[1717520230703,2.1845,169.38,169.33,6.69]
[1717520230896,2.1847,169.36,169.32,6.69]
[1717520231188,2.1849,169.34,169.29,2.1855]
[1717520231391,2.1849,169.34,169.29,8.8755]
[1717520231606,17.6129,169.37,169.3,8.8754]
[1717520231799,2.1849,169.35,169.3,8.8754]
[1717520232006,2.1849,169.35,169.31,2.1853]
[1717520232212,8.532,169.36,169.31,2.1853]
[1717520232711,6.3473,169.36,169.32,2.1851]
[1717520234206,8.532,169.36,169.32,2.1851]
[1717520234692,6.3473,169.36,169.32,2.1851]
[1717520234886,6.3473,169.36,169.3,4.3708]
[1717520234887,8.532,169.36,169.31,8.8752]
[1717520235105,8.532,169.36,169.31,6.69]
[1717520235300,8.532,169.36,169.31,2.1852]
[1717520235499,6.3473,169.36,169.32,2.1851]
[1717520235708,6.3473,169.36,169.3,4.3708]
[1717520235918,2.1848,169.35,169.3,2.1853]
[1717520236113,6.3473,169.36,169.3,6.69]
[1717520236397,6.3473,169.36,169.28,13.1137]
[1717520236398,6.69,169.35,169.29,2.1854]
[1717520236620,8.8468,169.34,169.29,2.1854]
[1717520236814,6.6618,169.33,169.29,2.1854]
[1717520237516,6.6618,169.33,169.3,2.1854]
[1717520237712,8.8469,169.33,169.29,2.1855]
[1717520237922,2.1852,169.32,169.28,2.1856]
[1717520238106,6.6618,169.33,169.29,2.1855]
[1717520238305,8.8469,169.33,169.28,2.1856]
[1717520238541,8.4644,169.32,169.28,2.1856]
[1717520239530,6.2792,169.32,169.28,2.1856]
[1717520240531,6.2792,169.32,169.29,2.1855]
[1717520241034,6.2792,169.32,169.28,6.69]
[1717520241035,6.2792,169.32,169.3,2.1854]
[1717520241409,6.2792,169.32,169.29,2.1855]
[1717520242721,15.0741,169.34,169.29,2.1855]
[1717520243043,8.3841,169.34,169.3,2.1854]
[1717520243641,8.3841,169.34,169.27,4.3716]
[1717520243642,6.1992,169.33,169.29,2.1855]
[1717520243829,8.3843,169.33,169.28,2.1856]
[1717520244932,6.1992,169.33,169.29,2.1855]
[1717520245324,8.3842,169.33,169.28,2.1856]
[1717520245509,2.1853,169.32,169.25,10.9304]
[1717520245717,8.3843,169.33,169.28,2.1856]
[1717520246037,6.1992,169.33,169.29,2.1855]
[1717520246235,8.3843,169.33,169.28,2.1856]
[1717520246536,6.5113,169.31,169.27,2.1858]
[1717520246831,6.1745,169.3,169.22,6.5592]
[1717520247012,8.36,169.3,169.25,2.1861]
[1717520247413,6.1745,169.3,169.26,2.1859]
[1717520247611,6.1745,169.3,169.27,2.1858]
[1717520248223,6.1745,169.3,169.26,2.1859]
[1717520248934,6.1745,169.3,169.27,2.1858]
[1717520249227,6.1745,169.3,169.26,2.1859]
[1717520249923,8.3599,169.3,169.24,2.1861]
[1717520250128,14.9681,169.29,169.24,2.1861]
[1717520250747,12.7825,169.29,169.25,2.186]
[1717520251345,6.2085,169.28,169.25,2.186]
[1717520251553,8.3942,169.28,169.23,2.1862]
[1717520251718,6.2085,169.28,169.23,2.1862]
[1717520252255,2.1859,169.27,169.22,2.1863]
[1717520252438,13.0387,169.26,169.22,2.1863]
[1717520253425,6.6099,169.25,169.21,2.1866]
[1717520254426,6.6099,169.25,169.22,2.1864]
[1717520254835,6.3949,169.24,169.21,2.1865]
[1717520255124,8.5811,169.24,169.19,2.1868]
[1717520255653,6.3949,169.23,169.17,11.0642]
[1717520255820,6.3949,169.23,169.19,2.1867]
[1717520256021,6.3949,169.23,169.2,2.1867]
[1717520256724,2.1861,169.25,169.19,6.69]
[1717520256725,6.1074,169.25,169.19,6.69]
[1717520257039,6.1074,169.25,169.21,2.1865]
[1717520257220,8.2935,169.25,169.2,8.8766]
[1717520257428,6.1074,169.25,169.21,2.1866]
[1717520257648,6.1074,169.25,169.21,8.8766]
[1717520257842,6.1074,169.25,169.21,2.1866]
[1717520258043,8.2935,169.25,169.2,8.8766]
[1717520258548,8.2935,169.25,169.2,2.1866]
[1717520258730,8.2935,169.25,169.2,8.8766]
[1717520258938,6.1074,169.25,169.2,8.8766]
[1717520259246,8.2935,169.25,169.21,2.1866]
[1717520259743,6.1074,169.25,169.21,2.1866]
[1717520259943,8.2935,169.25,169.21,2.1866]
[1717520260141,8.2935,169.25,169.2,8.8767]
[1717520260741,8.2935,169.25,169.21,2.1866]
[1717520260931,6.1074,169.25,169.21,2.1866]
[1717520261856,8.2935,169.25,169.2,8.8766]
[1717520262632,8.2935,169.25,169.21,2.1866]
[1717520263049,6.1074,169.25,169.21,2.1866]
[1717520263737,8.2935,169.25,169.2,8.8766]
[1717520264435,2.1862,169.24,169.2,8.8766]
[1717520265362,8.2935,169.25,169.2,8.8766]
[1717520265968,6.6564,169.24,169.19,2.1868]
[1717520266161,2.1864,169.23,169.2,6.69]
[1717520266647,2.1864,169.23,169.19,6.69]
[1717520267060,2.1864,169.23,169.19,8.8768]
[1717520268170,8.8427,169.24,169.2,8.8767]
[1717520268773,8.8427,169.24,169.2,6.69]
[1717520268954,2.1864,169.23,169.2,6.69]
[1717520269156,2.1864,169.23,169.19,8.8768]
[1717520270371,8.6932,169.23,169.18,8.877]
[1717520270547,6.5068,169.23,169.19,2.1868]
[1717520270865,8.6932,169.23,169.19,8.8768]
[1717520271050,6.5068,169.23,169.19,8.8768]
[1717520272381,2.1861,169.25,169.2,8.8767]
[1717520272544,8.3914,169.25,169.2,8.8767]
[1717520272750,2.1862,169.24,169.19,8.8768]
[1717520272969,6.2053,169.25,169.19,2.1868]
[1717520273159,2.1862,169.24,169.19,8.8768]
[1717520273656,8.3914,169.25,169.19,6.69]
[1717520273965,8.3914,169.25,169.2,2.1866]
[1717520274750,8.3914,169.25,169.21,2.1866]
[1717520274971,8.3914,169.25,169.2,8.8766]
[1717520275366,6.2053,169.25,169.2,8.8766]
[1717520275564,8.3914,169.25,169.2,8.8766]
[1717520275756,2.1862,169.24,169.2,8.8766]
[1717520276673,2.1862,169.24,169.2,6.69]
[1717520276875,2.1862,169.24,169.18,4.3739]
[1717520276876,8.4701,169.24,169.19,8.8768]
[1717520277083,8.4701,169.24,169.19,2.1868]
[1717520277246,8.4701,169.24,169.19,8.8768]
[1717520277761,8.4701,169.24,169.19,2.1868]
[1717520278071,8.4701,169.24,169.2,2.1867]
[1717520278860,6.2839,169.24,169.2,2.1867]
[1717520279065,6.2839,169.24,169.21,2.1866]
[1717520279264,8.4701,169.24,169.19,2.1867]
[1717520279472,8.5441,169.23,169.18,8.8769]
[1717520279858,8.5441,169.23,169.19,2.1868]
[1717520280146,6.3577,169.23,169.19,2.1868]
[1717520280353,6.3577,169.23,169.2,2.1867]
[1717520280657,6.3577,169.23,169.19,8.8768]
[1717520281374,8.5441,169.23,169.19,8.8768]
[1717520281888,8.544,169.23,169.19,2.1868]
[1717520282175,8.544,169.23,169.19,6.69]
[1717520282352,6.3577,169.23,169.19,8.8768]
[1717520283071,6.3577,169.23,169.2,2.1867]
[1717520283493,6.3577,169.23,169.19,2.1868]
[1717520283794,6.3577,169.23,169.19,8.8768]
[1717520284088,6.5686,169.23,169.19,2.1868]
[1717520284390,8.7549,169.23,169.19,2.1867]
[1717520284754,6.5686,169.23,169.19,2.1867]
[1717520284972,6.5686,169.23,169.18,13.251]
[1717520285160,6.5686,169.23,169.2,8.8766]
[1717520285373,8.4938,169.25,169.21,2.1866]
[1717520285887,8.4938,169.25,169.2,2.1867]
[1717520286057,8.4939,169.24,169.2,8.8767]
[1717520286257,8.4939,169.24,169.2,2.1867]
[1717520286490,6.3077,169.24,169.2,2.1867]
[1717520286786,6.3077,169.24,169.2,8.8767]
[1717520286983,8.8401,169.26,169.21,8.8766]
[1717520287581,6.6541,169.26,169.23,8.8763]
[1717520288382,6.6541,169.26,169.23,6.69]
[1717520288978,6.6541,169.26,169.22,2.1864]
[1717520289176,6.6541,169.26,169.23,6.69]
[1717520289371,6.6541,169.26,169.22,8.8764]
[1717520289569,8.8401,169.26,169.22,6.69]
[1717520289961,8.8401,169.26,169.22,8.8764]
[1717520290366,6.6541,169.26,169.22,8.8764]
[1717520290970,8.84,169.26,169.21,8.8765]
[1717520291268,2.1862,169.24,169.17,4.3741]
[1717520291467,2.1862,169.24,169.19,2.1868]
[1717520291468,8.7858,169.24,169.19,2.1868]
[1717520291673,8.7858,169.24,169.19,8.8768]
[1717520291886,2.1863,169.23,169.19,8.8768]
[1717520292084,2.1859,169.27,169.22,6.69]
[1717520292391,8.5229,169.27,169.21,2.1865]
[1717520292598,8.523,169.27,169.21,2.1865]
[1717520292781,8.523,169.27,169.22,6.69]
[1717520294193,8.6733,169.26,169.2,2.1867]
[1717520294498,2.1863,169.24,169.18,2.1869]
[1717520294804,6.4874,169.24,169.2,2.1866]
[1717520294973,6.4874,169.24,169.2,8.8766]
[1717520295173,6.4874,169.24,169.21,2.1866]
[1717520295363,23.50789082,169.27,169.22,8.8764]
[1717520295566,24.112755,169.26,169.21,2.1866]
[1717520295763,23.10649082,169.26,169.21,2.1866]
[1717520295985,23.10649082,169.25,169.21,2.1866]
[1717520296264,19.20833385,169.24,169.18,2.1869]
[1717520296472,6.086,169.23,169.19,6.69]
[1717520296970,6.086,169.23,169.19,8.8768]
[1717520297296,8.2723,169.23,169.17,6.69]
[1717520297688,6.69,169.24,169.18,2.1869]
[1717520297689,8.8763,169.24,169.18,2.1869]
[1717520297892,6.2439,169.22,169.18,2.1869]
[1717520298393,6.2439,169.22,169.19,2.1868]
[1717520299473,8.2366,169.23,169.18,6.69]
[1717520299674,0.17,169.22,169.16,6.69]
[1717520299874,6.5055,169.21,169.17,2.1871]
[1717520300198,6.5055,169.21,169.16,6.69]
[1717520300199,6.5055,169.21,169.18,2.187]
[1717520300498,6.5055,169.21,169.16,6.69]
[1717520300499,6.5055,169.21,169.17,2.187]
[1717520300996,23.52971934,169.23,169.19,2.1868]
[1717520301226,7.09416266,169.22,169.19,8.8768]
[1717520301389,7.09416266,169.22,169.19,6.69]
[1717520301710,13.70856266,169.22,169.18,2.1869]
[1717520301876,6.6144,169.21,169.17,6.69]
[1717520302082,6.6144,169.21,169.16,8.8771]
[1717520302573,6.6144,169.21,169.16,8.8772]
[1717520303010,6.6144,169.21,169.17,2.1871]
[1717520303204,6.6144,169.21,169.18,2.187]
[1717520303582,25.61950651,169.23,169.18,2.187]
[1717520303784,7.09413035,169.22,169.18,2.187]
[1717520304178,13.68023035,169.22,169.18,2.187]
[1717520304378,8.7726,169.22,169.17,8.8771]
[1717520304599,6.5861,169.22,169.18,2.1869]
[1717520304910,6.5861,169.22,169.18,6.69]
[1717520305143,6.5861,169.22,169.18,8.8769]
[1717520309910,8.4326,169.24,169.19,2.1868]
[1717520310118,8.4326,169.24,169.19,6.69]
[1717520310310,17.02469674,169.25,169.21,6.69]
[1717520310549,25.28659674,169.29,169.22,6.69]
[1717520310822,24.11596908,169.28,169.24,6.69]
[1717520310997,7.09293255,169.27,169.24,8.8762]
[1717520311197,25.28493653,169.29,169.24,8.8762]
[1717520311428,9.27813507,169.28,169.24,6.69]
[1717520311630,7.09243507,169.27,169.24,6.69]
[1717520312711,19.20873653,169.28,169.24,6.69]
[1717520313026,7.0923755,169.27,169.24,6.69]
[1717520313825,2.1857,169.28,169.24,6.69]
[1717520314006,7.0923566,169.27,169.24,6.69]
[1717520314732,9.2781566,169.27,169.23,6.69]
[1717520314901,9.2781566,169.27,169.22,2.1864]
[1717520314902,6.69,169.27,169.19,2.1868]
[1717520315233,6.69,169.27,169.2,2.1867]
[1717520315234,8.2201,169.25,169.2,2.1867]
[1717520315408,12.724,169.24,169.17,20.0]
[1717520315605,2.1865,169.22,169.17,2.187]
[1717520315816,2.1865,169.22,169.17,8.877]
[1717520316324,8.8764,169.23,169.17,8.877]
[1717520316532,15.2171,169.23,169.18,2.187]
[1717520316908,6.3407,169.23,169.18,2.187]
[1717520317227,19.21165264,169.24,169.19,2.1868]
[1717520317415,8.2052,169.24,169.19,2.1868]
[1717520317927,8.2052,169.24,169.18,8.8769]
[1717520318119,2.1863,169.23,169.18,8.8769]
[1717520318318,8.3535,169.23,169.18,2.1869]
[1717520318518,8.3535,169.23,169.18,8.8769]
[1717520319022,17.0255123,169.25,169.17,10.9354]
[1717520319214,17.0255123,169.25,169.19,6.69]
[1717520319215,7.09382248,169.24,169.19,6.69]
[1717520319417,2.1862,169.25,169.2,2.1867]
[1717520319723,15.3292,169.25,169.19,8.8768]
[1717520320226,2.1862,169.24,169.19,2.1868]
[1717520320432,8.6665,169.24,169.18,2.1869]
[1717520320646,15.46400078,169.23,169.18,8.8769]
[1717520320812,15.46400078,169.23,169.18,2.1869]
[1717520321129,8.3701,169.23,169.18,8.877]
[1717520321438,8.3701,169.23,169.18,2.187]
[1717520323332,6.1837,169.23,169.19,2.1868]
[1717520323932,2.1861,169.25,169.19,2.1868]
[1717520324131,2.1861,169.25,169.18,6.69]
[1717520324132,7.0938317,169.24,169.2,2.1867]
[1717520324426,7.0938317,169.24,169.18,6.69]
[1717520324628,7.0938317,169.24,169.19,2.1868]
[1717520324840,15.5648317,169.24,169.19,2.1868]
[1717520325042,8.471,169.24,169.19,2.1868]
[1717520325425,2.1863,169.23,169.18,8.8769]
[1717520325653,8.4711,169.24,169.18,8.8769]
[1717520326106,2.1863,169.23,169.18,8.8769]
[1717520326309,8.3171,169.23,169.18,8.8769]
[1717520326531,6.1308,169.23,169.18,6.69]
[1717520327241,8.3171,169.23,169.18,2.1869]
[1717520327546,15.0071,169.23,169.18,2.1869]
[1717520328630,12.8208,169.23,169.18,2.1869]
[1717520329215,12.8208,169.23,169.19,2.1868]
[1717520329417,6.1308,169.23,169.19,2.1868]
[1717520330227,8.8763,169.24,169.19,2.1868]
[1717520330421,19.21128857,169.25,169.19,2.1868]
[1717520330725,7.09366938,169.24,169.19,2.1868]
[1717520331039,9.27986938,169.24,169.19,8.8768]
[1717520331267,2.1862,169.24,169.19,8.8768]
[1717520331540,8.8761,169.25,169.2,2.1867]
[1717520331740,7.09346197,169.24,169.2,2.1867]
[1717520331919,7.09346197,169.24,169.19,8.8768]
[1717520332434,9.27966197,169.24,169.19,8.8768]
[1717520332629,2.1862,169.24,169.19,8.8768]
[1717520334149,2.1861,169.25,169.2,2.1867]
[1717520334332,9.27961683,169.24,169.19,8.8768]
[1717520334509,2.1861,169.25,169.19,8.8768]
[1717520334709,2.1861,169.25,169.2,8.8767]
[1717520335817,2.1862,169.24,169.2,6.69]
[1717520336543,2.1862,169.24,169.19,8.8768]
[1717520336923,2.1862,169.24,169.19,6.69]
[1717520337123,2.1864,169.23,169.19,6.69]
[1717520337324,2.1864,169.23,169.18,8.8769]
[1717520337814,23.71373769,169.25,169.18,8.8769]
[1717520338023,2.1863,169.23,169.18,8.8769]
[1717520338421,2.1863,169.23,169.18,2.1869]
[1717520338632,2.1863,169.24,169.18,8.8769]
[1717520339437,2.1863,169.23,169.18,8.8769]
[1717520340243,2.1865,169.22,169.17,8.877]
[1717520340446,2.1865,169.22,169.17,2.187]
[1717520340632,2.1865,169.22,169.17,8.877]
[1717520340835,2.1864,169.23,169.18,8.877]
[1717520341034,2.1864,169.23,169.18,2.187]
[1717520341928,2.1864,169.23,169.17,2.187]
[1717520342626,2.1865,169.22,169.17,2.187]
[1717520343039,17.36437494,169.24,169.17,2.187]
[1717520343249,2.1865,169.22,169.17,2.187]
[1717520343848,2.1867,169.21,169.13,10.9379]
[1717520344052,2.1866,169.21,169.15,6.69]
[1717520344236,2.1867,169.2,169.15,2.1873]
[1717520344836,8.8766,169.21,169.15,2.1873]
[1717520345157,2.1866,169.21,169.16,2.1872]
[1717520346124,2.1866,169.21,169.16,8.8772]
[1717520346320,2.1865,169.22,169.17,2.1871]